[Event "*** Titled Tuesday Blitz"]
[Site "Chess.com"]
[Date "2021.02.02"]
[Round "5"]
[White "chesslh19"]
[Black "KeithArkell"]
[Result "0-1"]
[WhiteElo "2249"]
[BlackElo "2420"]
[TimeControl "180+1"]
[EndTime "10:58:41 PST"]
[Termination "KeithArkell won by resignation"]

1. e4 {[%clk 0:02:57.8]} 1... c6 {[%clk 0:02:59.7]} 2. d4 {[%clk 0:02:57.2]}
2... d5 {[%clk 0:02:59.8]} 3. Nd2 {[%clk 0:02:57.5]} 3... dxe4 {[%clk
0:02:59.6]} 4. Nxe4 {[%clk 0:02:58.4]} 4... Nd7 {[%clk 0:02:59.8]} 5. Nf3 {[%clk
0:02:57.7]} 5... Ngf6 {[%clk 0:02:59.8]} 6. Nxf6+ {[%clk 0:02:57.9]} 6... Nxf6
{[%clk 0:03:00]} 7. c3 {[%clk 0:02:53.6]} 7... Bg4 {[%clk 0:02:58.8]} 8. h3
{[%clk 0:02:53.7]} 8... Bxf3 {[%clk 0:02:58.4]} 9. Qxf3 {[%clk 0:02:54.6]} 9...
e6 {[%clk 0:02:59.1]} 10. g3 {[%clk 0:02:21.3]} 10... Qd5 {[%clk 0:02:57.9]} 11.
Bg2 {[%clk 0:02:17.9]} 11... Be7 {[%clk 0:02:56.9]} 12. Qxd5 {[%clk 0:02:10.8]}
12... cxd5 {[%clk 0:02:56.2]} 13. Bg5 {[%clk 0:02:09.8]} 13... Nd7 {[%clk
0:02:52.7]} 14. Bf4 {[%clk 0:02:01.3]} 14... Nb6 {[%clk 0:02:45.7]} 15. O-O
{[%clk 0:01:56.9]} 15... Kd7 {[%clk 0:02:45.7]} 16. Rfe1 {[%clk 0:01:51]} 16...
Bd6 {[%clk 0:02:45.3]} 17. Bxd6 {[%clk 0:01:35.1]} 17... Kxd6 {[%clk 0:02:46.2]}
18. Bf1 {[%clk 0:01:35.6]} 18... Rhc8 {[%clk 0:02:44.4]} 19. Bd3 {[%clk
0:01:34.4]} 19... g6 {[%clk 0:02:43.9]} 20. Re2 {[%clk 0:01:32.5]} 20... Ke7
{[%clk 0:02:35.1]} 21. h4 {[%clk 0:01:32.4]} 21... h6 {[%clk 0:02:32.9]} 22. Kg2
{[%clk 0:01:32]} 22... Kf6 {[%clk 0:02:32.5]} 23. f4 {[%clk 0:01:31.5]} 23...
Rc7 {[%clk 0:02:26.1]} 24. Rf1 {[%clk 0:01:27.7]} 24... h5 {[%clk 0:02:24.7]}
25. Kf3 {[%clk 0:00:57.6]} 25... Nc4 {[%clk 0:02:24.4]} 26. Rh1 {[%clk
0:00:43.1]} 26... b5 {[%clk 0:02:23]} 27. g4 {[%clk 0:00:42.8]} 27... hxg4+
{[%clk 0:02:22.3]} 28. Kxg4 {[%clk 0:00:43.7]} 28... Nd6 {[%clk 0:02:22]} 29. h5
{[%clk 0:00:39.3]} 29... Rh8 {[%clk 0:02:21.1]} 30. Reh2 {[%clk 0:00:37.8]}
30... gxh5+ {[%clk 0:02:21]} 31. Rxh5 {[%clk 0:00:37.7]} 31... Rxh5 {[%clk
0:02:20.9]} 32. Rxh5 {[%clk 0:00:37.3]} 32... a5 {[%clk 0:02:20.1]} 33. a3
{[%clk 0:00:32.4]} 33... b4 {[%clk 0:02:20.1]} 34. axb4 {[%clk 0:00:32]} 34...
axb4 {[%clk 0:02:20.8]} 35. cxb4 {[%clk 0:00:31]} 35... Rb7 {[%clk 0:02:21]} 36.
b5 {[%clk 0:00:29]} 36... Nxb5 {[%clk 0:02:20.3]} 37. Bxb5 {[%clk 0:00:29.1]}
37... Rxb5 {[%clk 0:02:19.8]} 38. Rh2 {[%clk 0:00:30]} 38... Rb3 {[%clk
0:02:15.9]} 39. Rd2 {[%clk 0:00:28.3]} 39... Re3 {[%clk 0:02:15.5]} 40. Rd1
{[%clk 0:00:24.5]} 40... Re2 {[%clk 0:02:14.5]} 41. Rb1 {[%clk 0:00:22.6]} 41...
Rd2 {[%clk 0:02:12.2]} 42. b4 {[%clk 0:00:22.8]} 42... Rxd4 {[%clk 0:02:12.2]}
43. b5 {[%clk 0:00:19.4]} 43... Rc4 {[%clk 0:02:12.3]} 44. b6 {[%clk 0:00:19.5]}
44... Rc8 {[%clk 0:02:12.2]} 45. b7 {[%clk 0:00:15.5]} 45... Rg8+ {[%clk
0:02:08.1]} 46. Kf3 {[%clk 0:00:14.2]} 46... Rb8 {[%clk 0:02:09]} 47. Ke3 {[%clk
0:00:14.3]} 47... Ke7 {[%clk 0:02:09]} 48. Kd4 {[%clk 0:00:12.3]} 48... Kd6
{[%clk 0:02:09.1]} 49. Rb2 {[%clk 0:00:07.8]} 49... Kc7 {[%clk 0:02:03]} 50. Ke5
{[%clk 0:00:08]} 50... Rxb7 {[%clk 0:02:03.2]} 51. Rc2+ {[%clk 0:00:08.3]} 51...
Kd7 {[%clk 0:01:48.1]} 52. Kf6 {[%clk 0:00:08.5]} 52... Rb4 {[%clk 0:01:47.2]}
53. f5 {[%clk 0:00:05.3]} 53... Rf4 {[%clk 0:01:46.6]} 54. Kxf7 {[%clk
0:00:05.7]} 54... Rxf5+ {[%clk 0:01:46.9]} 55. Kg6 {[%clk 0:00:06.3]} 55... Kd6
{[%clk 0:01:47.1]} 56. Rc8 {[%clk 0:00:05.5]} 56... d4 {[%clk 0:01:46.8]} 57.
Rd8+ {[%clk 0:00:05.7]} 57... Ke5 {[%clk 0:01:47.2]} 58. Re8 {[%clk 0:00:05.7]}
58... d3 {[%clk 0:01:46.6]} 59. Rd8 {[%clk 0:00:05.9]} 59... Rf3 {[%clk
0:01:46.6]} 60. Kg5 {[%clk 0:00:05.3]} 60... Ke4 {[%clk 0:01:47.1]} 61. Kg4
{[%clk 0:00:05.6]} 61... e5 {[%clk 0:01:46.8]} 62. Rd7 {[%clk 0:00:05.2]} 62...
Rf1 {[%clk 0:01:46]} 63. Rd8 {[%clk 0:00:05.4]} 63... Ke3 {[%clk 0:01:45.9]} 64.
Kg3 {[%clk 0:00:05.6]} 64... e4 {[%clk 0:01:46.2]} 65. Kg2 {[%clk 0:00:05.8]}
65... Ke2 {[%clk 0:01:42]} 66. Rd7 {[%clk 0:00:04.2]} 66... Rf6 {[%clk
0:01:39.1]} 67. Rd5 {[%clk 0:00:03.9]} 67... e3 {[%clk 0:01:39.1]} 68. Kg1
{[%clk 0:00:04]} 68... d2 {[%clk 0:01:39.5]} 0-1

[Event "*** Titled Tuesday Blitz"]
[Site "Chess.com"]
[Date "2021.02.02"]
[Round "5"]
[White "dozer80"]
[Black "dretch"]
[Result "0-1"]
[WhiteElo "2595"]
[BlackElo "2840"]
[TimeControl "180+1"]
[EndTime "10:58:42 PST"]
[Termination "dretch won by checkmate"]

1. e4 {[%clk 0:02:57.9]} 1... e6 {[%clk 0:02:50]} 2. d4 {[%clk 0:02:57.4]} 2...
d5 {[%clk 0:02:50.2]} 3. Nc3 {[%clk 0:02:57.7]} 3... Nf6 {[%clk 0:02:49.9]} 4.
Bg5 {[%clk 0:02:55.1]} 4... dxe4 {[%clk 0:02:50.1]} 5. Nxe4 {[%clk 0:02:54.9]}
5... Be7 {[%clk 0:02:50.8]} 6. Bxf6 {[%clk 0:02:55.2]} 6... Bxf6 {[%clk
0:02:51.7]} 7. Nf3 {[%clk 0:02:54.8]} 7... Nd7 {[%clk 0:02:52.3]} 8. Bd3 {[%clk
0:02:50.2]} 8... c5 {[%clk 0:02:52.3]} 9. dxc5 {[%clk 0:02:39]} 9... Nxc5 {[%clk
0:02:52.2]} 10. Bb5+ {[%clk 0:02:32.2]} 10... Bd7 {[%clk 0:02:51.8]} 11. Bxd7+
{[%clk 0:02:26]} 11... Nxd7 {[%clk 0:02:52.7]} 12. O-O {[%clk 0:01:44.5]} 12...
O-O {[%clk 0:02:51.7]} 13. c3 {[%clk 0:01:45]} 13... Be7 {[%clk 0:02:49.8]} 14.
Qe2 {[%clk 0:01:42.5]} 14... Qc7 {[%clk 0:02:49.4]} 15. Rfe1 {[%clk 0:01:37.4]}
15... Rad8 {[%clk 0:02:48.1]} 16. Nd4 {[%clk 0:01:36.9]} 16... Nf6 {[%clk
0:02:41.2]} 17. Ng5 {[%clk 0:01:33.9]} 17... Bc5 {[%clk 0:02:33.2]} 18. Nb3
{[%clk 0:01:15.1]} 18... Bb6 {[%clk 0:02:17.4]} 19. Rad1 {[%clk 0:01:08]} 19...
Qf4 {[%clk 0:02:13]} 20. Nh3 {[%clk 0:00:54.9]} 20... Qf5 {[%clk 0:02:10.9]} 21.
c4 {[%clk 0:00:47.1]} 21... g5 {[%clk 0:01:52.6]} 22. c5 {[%clk 0:00:25.3]}
22... Bc7 {[%clk 0:01:52.6]} 23. f3 {[%clk 0:00:21.3]} 23... h5 {[%clk
0:01:44.6]} 24. Nf2 {[%clk 0:00:20.7]} 24... g4 {[%clk 0:01:39]} 25. Ne4 {[%clk
0:00:20.7]} 25... Nxe4 {[%clk 0:01:33.1]} 26. fxe4 {[%clk 0:00:20.6]} 26... Qg5
{[%clk 0:01:27.3]} 27. g3 {[%clk 0:00:16.6]} 27... h4 {[%clk 0:01:26.2]} 28. Kg2
{[%clk 0:00:16.4]} 28... Be5 {[%clk 0:01:07.1]} 29. Rxd8 {[%clk 0:00:11.8]}
29... Rxd8 {[%clk 0:01:06.8]} 30. Rf1 {[%clk 0:00:11.4]} 30... Qh5 {[%clk
0:01:00.7]} 31. Qf2 {[%clk 0:00:11.6]} 31... hxg3 {[%clk 0:00:56.7]} 32. hxg3
{[%clk 0:00:12.5]} 32... Rd3 {[%clk 0:00:55.2]} 33. Rh1 {[%clk 0:00:08.5]} 33...
Qg6 {[%clk 0:00:52.7]} 34. Qe2 {[%clk 0:00:05.7]} 34... Rxg3+ {[%clk 0:00:52.3]}
35. Kf2 {[%clk 0:00:06.1]} 35... Rf3+ {[%clk 0:00:42]} 36. Ke1 {[%clk
0:00:05.1]} 36... Bxb2 {[%clk 0:00:36.5]} 37. Qxb2 {[%clk 0:00:04.4]} 37...
Qxe4+ {[%clk 0:00:36.5]} 38. Kd1 {[%clk 0:00:04.6]} 38... Rd3+ {[%clk
0:00:35.2]} 39. Kc2 {[%clk 0:00:04.9]} 39... Rd4+ {[%clk 0:00:29]} 40. Kc3
{[%clk 0:00:03.9]} 40... Qd3# {[%clk 0:00:28.2]} 0-1

[Event "*** Titled Tuesday Blitz"]
[Site "Chess.com"]
[Date "2021.02.02"]
[Round "5"]
[White "Rogarcia1"]
[Black "profofchess"]
[Result "1-0"]
[WhiteElo "2268"]
[BlackElo "2395"]
[TimeControl "180+1"]
[EndTime "10:58:43 PST"]
[Termination "Rogarcia1 won on time"]

1. e4 {[%clk 0:03:00.9]} 1... e6 {[%clk 0:02:59.8]} 2. d4 {[%clk 0:02:59.8]}
2... d5 {[%clk 0:02:59.7]} 3. e5 {[%clk 0:02:59.9]} 3... c5 {[%clk 0:02:57.7]}
4. c3 {[%clk 0:02:59.7]} 4... Nc6 {[%clk 0:02:56.8]} 5. Nf3 {[%clk 0:02:59.2]}
5... Bd7 {[%clk 0:02:57.4]} 6. Be2 {[%clk 0:02:58.5]} 6... a6 {[%clk 0:02:40.7]}
7. O-O {[%clk 0:02:57.7]} 7... Nh6 {[%clk 0:02:26.7]} 8. Bxh6 {[%clk 0:02:53.8]}
8... gxh6 {[%clk 0:02:26.2]} 9. Qd2 {[%clk 0:02:53.5]} 9... Bg7 {[%clk
0:02:24.6]} 10. Na3 {[%clk 0:02:50.6]} 10... b6 {[%clk 0:02:15.4]} 11. Nc2
{[%clk 0:02:49.7]} 11... Ne7 {[%clk 0:02:08.1]} 12. Bd3 {[%clk 0:02:33.5]} 12...
Ng6 {[%clk 0:02:07.2]} 13. Qe3 {[%clk 0:02:28.1]} 13... Qe7 {[%clk 0:02:00.3]}
14. dxc5 {[%clk 0:02:17.8]} 14... bxc5 {[%clk 0:01:59.8]} 15. b4 {[%clk
0:02:17.4]} 15... cxb4 {[%clk 0:01:48.2]} 16. cxb4 {[%clk 0:02:14.7]} 16... Bb5
{[%clk 0:01:41.7]} 17. Ncd4 {[%clk 0:01:49.7]} 17... Bxd3 {[%clk 0:01:38.6]} 18.
Qxd3 {[%clk 0:01:49.9]} 18... O-O {[%clk 0:01:38.9]} 19. Nc6 {[%clk 0:01:15.9]}
19... Qb7 {[%clk 0:01:33]} 20. Rac1 {[%clk 0:01:09.3]} 20... Rfc8 {[%clk
0:00:45.6]} 21. Na5 {[%clk 0:00:48.4]} 21... Qb5 {[%clk 0:00:21.4]} 22. Qd4
{[%clk 0:00:25.9]} 22... Bf8 {[%clk 0:00:14.5]} 23. a3 {[%clk 0:00:25]} 23...
Qa4 {[%clk 0:00:13.7]} 24. Nb7 {[%clk 0:00:20.5]} 24... Qxa3 {[%clk 0:00:09.6]}
25. Rb1 {[%clk 0:00:19.9]} 25... Qa2 {[%clk 0:00:06.1]} 26. Nd6 {[%clk
0:00:19.2]} 26... Rc2 {[%clk 0:00:04.3]} 27. Ra1 {[%clk 0:00:16.6]} 27... Qb3
{[%clk 0:00:02.9]} 28. Qb6 {[%clk 0:00:15.5]} 28... Qc3 {[%clk 0:00:02.2]} 29.
Rae1 {[%clk 0:00:14.2]} 29... Rb2 {[%clk 0:00:01.3]} 30. Qb7 {[%clk 0:00:12.4]}
1-0

[Event "*** Titled Tuesday Blitz"]
[Site "Chess.com"]
[Date "2021.02.02"]
[Round "5"]
[White "KuzubovYuriy"]
[Black "L1m96"]
[Result "1/2-1/2"]
[WhiteElo "2838"]
[BlackElo "2558"]
[TimeControl "180+1"]
[EndTime "10:58:44 PST"]
[Termination "Game drawn by repetition"]

1. d4 {[%clk 0:03:00.9]} 1... Nf6 {[%clk 0:02:59.9]} 2. Nf3 {[%clk 0:03:00.8]}
2... e6 {[%clk 0:02:59.8]} 3. c4 {[%clk 0:03:00.2]} 3... b6 {[%clk 0:02:59.8]}
4. g3 {[%clk 0:02:59.5]} 4... Ba6 {[%clk 0:02:59.3]} 5. Qc2 {[%clk 0:02:58.8]}
5... Bb4+ {[%clk 0:02:55.5]} 6. Bd2 {[%clk 0:02:57.4]} 6... Qe7 {[%clk 0:02:48]}
7. e4 {[%clk 0:02:52.9]} 7... Bxd2+ {[%clk 0:02:39]} 8. Nbxd2 {[%clk 0:02:52.3]}
8... d6 {[%clk 0:02:38.2]} 9. Bg2 {[%clk 0:02:43]} 9... e5 {[%clk 0:02:37]} 10.
O-O {[%clk 0:02:35.9]} 10... O-O {[%clk 0:02:32.4]} 11. Rfe1 {[%clk 0:02:34.5]}
11... Nbd7 {[%clk 0:02:30.4]} 12. Nf1 {[%clk 0:02:32.5]} 12... Bb7 {[%clk
0:02:27.7]} 13. d5 {[%clk 0:02:26.3]} 13... a5 {[%clk 0:02:26.5]} 14. Ne3 {[%clk
0:02:24.5]} 14... g6 {[%clk 0:02:25.9]} 15. b3 {[%clk 0:02:20.4]} 15... c6
{[%clk 0:02:17.7]} 16. dxc6 {[%clk 0:02:09.9]} 16... Bxc6 {[%clk 0:02:18.6]} 17.
Nd2 {[%clk 0:01:54.3]} 17... Rfc8 {[%clk 0:02:09.6]} 18. Rad1 {[%clk 0:01:39.6]}
18... Nc5 {[%clk 0:02:05.8]} 19. Nd5 {[%clk 0:01:38.2]} 19... Bxd5 {[%clk
0:02:04.6]} 20. exd5 {[%clk 0:01:38.2]} 20... Qb7 {[%clk 0:01:52]} 21. Qc3
{[%clk 0:01:17.4]} 21... Ncd7 {[%clk 0:01:50.7]} 22. Bh3 {[%clk 0:01:02.3]}
22... Re8 {[%clk 0:01:45.2]} 23. f4 {[%clk 0:00:57.8]} 23... exf4 {[%clk
0:01:41.6]} 24. Bxd7 {[%clk 0:00:48.7]} 24... Nxd7 {[%clk 0:01:40.1]} 25. Ne4
{[%clk 0:00:48.6]} 25... Qc7 {[%clk 0:01:20.2]} 26. gxf4 {[%clk 0:00:47.4]}
26... Re7 {[%clk 0:01:10.7]} 27. Re2 {[%clk 0:00:39.2]} 27... Rae8 {[%clk
0:01:09.3]} 28. Rde1 {[%clk 0:00:38.7]} 28... f5 {[%clk 0:01:04.5]} 29. Ng3
{[%clk 0:00:37]} 29... Rxe2 {[%clk 0:01:01.3]} 30. Rxe2 {[%clk 0:00:37.9]} 30...
Rxe2 {[%clk 0:01:00]} 31. Nxe2 {[%clk 0:00:38.8]} 31... Qd8 {[%clk 0:00:48.9]}
32. Nd4 {[%clk 0:00:34.2]} 32... Qf6 {[%clk 0:00:42.1]} 33. Qe3 {[%clk
0:00:33.7]} 33... Nc5 {[%clk 0:00:40.2]} 34. Qe8+ {[%clk 0:00:24.7]} 34... Kg7
{[%clk 0:00:37.6]} 35. Ne6+ {[%clk 0:00:20]} 35... Nxe6 {[%clk 0:00:36.9]} 36.
dxe6 {[%clk 0:00:20.9]} 36... Qd4+ {[%clk 0:00:36.4]} 37. Kg2 {[%clk 0:00:20]}
37... Qd2+ {[%clk 0:00:35.1]} 38. Kg1 {[%clk 0:00:19.9]} 38... Qe1+ {[%clk
0:00:35.1]} 39. Kg2 {[%clk 0:00:20.1]} 39... Qe2+ {[%clk 0:00:35.7]} 40. Kg1
{[%clk 0:00:19.9]} 40... Qe3+ {[%clk 0:00:32.5]} 41. Kg2 {[%clk 0:00:19.9]}
41... Qe4+ {[%clk 0:00:33]} 42. Kg1 {[%clk 0:00:19.9]} 42... Qe1+ {[%clk
0:00:26.8]} 43. Kg2 {[%clk 0:00:20.1]} 43... Qe2+ {[%clk 0:00:26.8]} 44. Kg1
{[%clk 0:00:20.3]} 44... Qe1+ {[%clk 0:00:21.9]} 1/2-1/2

[Event "*** Titled Tuesday Blitz"]
[Site "Chess.com"]
[Date "2021.02.02"]
[Round "5"]
[White "AttilaTurzo"]
[Black "cassoulet"]
[Result "0-1"]
[WhiteElo "2547"]
[BlackElo "2762"]
[TimeControl "180+1"]
[EndTime "10:58:45 PST"]
[Termination "cassoulet won on time"]

1. d4 {[%clk 0:03:00.9]} 1... Nf6 {[%clk 0:02:59.2]} 2. Nf3 {[%clk 0:03:00.4]}
2... g6 {[%clk 0:03:00.1]} 3. Bg5 {[%clk 0:02:59.7]} 3... Bg7 {[%clk 0:03:00.1]}
4. c3 {[%clk 0:03:00.3]} 4... d5 {[%clk 0:03:00.6]} 5. Nbd2 {[%clk 0:03:00.5]}
5... Nbd7 {[%clk 0:03:00.4]} 6. e3 {[%clk 0:03:00.8]} 6... O-O {[%clk
0:03:00.3]} 7. Be2 {[%clk 0:03:01.3]} 7... c5 {[%clk 0:03:00.7]} 8. O-O {[%clk
0:03:01]} 8... b6 {[%clk 0:03:01.1]} 9. a4 {[%clk 0:03:00.4]} 9... Bb7 {[%clk
0:02:59.7]} 10. a5 {[%clk 0:02:58.8]} 10... Ne4 {[%clk 0:03:00]} 11. Bf4 {[%clk
0:02:51.7]} 11... Bc6 {[%clk 0:02:52.4]} 12. axb6 {[%clk 0:02:49.4]} 12... axb6
{[%clk 0:02:52.1]} 13. Qb3 {[%clk 0:02:46.6]} 13... e6 {[%clk 0:02:34.7]} 14.
Bb5 {[%clk 0:02:45.7]} 14... Qc8 {[%clk 0:02:21.6]} 15. Nxe4 {[%clk 0:02:33.4]}
15... dxe4 {[%clk 0:02:21]} 16. Nd2 {[%clk 0:02:33.6]} 16... Bd5 {[%clk
0:02:12.1]} 17. Rxa8 {[%clk 0:02:02.3]} 17... Bxa8 {[%clk 0:02:05.6]} 18. Nc4
{[%clk 0:01:45.8]} 18... Bd5 {[%clk 0:02:03.3]} 19. Qa4 {[%clk 0:01:37]} 19...
Bxc4 {[%clk 0:01:49.2]} 20. Qxc4 {[%clk 0:01:26.7]} 20... Nf6 {[%clk 0:01:39.6]}
21. dxc5 {[%clk 0:01:21.5]} 21... Qxc5 {[%clk 0:01:37.5]} 22. Qxc5 {[%clk
0:01:11.4]} 22... bxc5 {[%clk 0:01:38.4]} 23. Bd6 {[%clk 0:01:02.1]} 23... Rc8
{[%clk 0:01:37.7]} 24. Ra1 {[%clk 0:00:49.4]} 24... Bf8 {[%clk 0:01:37.3]} 25.
Be5 {[%clk 0:00:45.8]} 25... Nd5 {[%clk 0:01:36.2]} 26. Kf1 {[%clk 0:00:44.3]}
26... h5 {[%clk 0:01:30.7]} 27. Ra7 {[%clk 0:00:38.4]} 27... h4 {[%clk
0:01:28.7]} 28. c4 {[%clk 0:00:26.4]} 28... Nb4 {[%clk 0:01:19.1]} 29. Rc7
{[%clk 0:00:24.6]} 29... Rxc7 {[%clk 0:01:16.4]} 30. Bxc7 {[%clk 0:00:25.5]}
30... Bg7 {[%clk 0:01:12.9]} 31. b3 {[%clk 0:00:24.6]} 31... Nd3 {[%clk
0:01:13]} 32. Ba4 {[%clk 0:00:23.3]} 32... Be5 {[%clk 0:01:12.6]} 33. Bxe5
{[%clk 0:00:20.6]} 33... Nxe5 {[%clk 0:01:13.5]} 34. Ke2 {[%clk 0:00:20.3]}
34... Kf8 {[%clk 0:01:13.7]} 35. Kd2 {[%clk 0:00:18.7]} 35... Ke7 {[%clk
0:01:13.8]} 36. Ke2 {[%clk 0:00:18.5]} 36... Kd6 {[%clk 0:01:13.6]} 37. f4
{[%clk 0:00:18.8]} 37... exf3+ {[%clk 0:01:08.5]} 38. gxf3 {[%clk 0:00:19.7]}
38... g5 {[%clk 0:01:08.8]} 39. Be8 {[%clk 0:00:18.4]} 39... f5 {[%clk
0:01:07.2]} 40. f4 {[%clk 0:00:16.9]} 40... gxf4 {[%clk 0:01:04.9]} 41. exf4
{[%clk 0:00:17.8]} 41... Ng4 {[%clk 0:01:05.6]} 42. h3 {[%clk 0:00:17.1]} 42...
Nf6 {[%clk 0:01:05.7]} 43. Ba4 {[%clk 0:00:14.4]} 43... Ne4 {[%clk 0:01:02.7]}
44. Be8 {[%clk 0:00:12.4]} 44... e5 {[%clk 0:01:02]} 45. fxe5+ {[%clk
0:00:12.3]} 45... Kxe5 {[%clk 0:01:02.9]} 46. Bg6 {[%clk 0:00:11.4]} 46... Ng5
{[%clk 0:01:00.5]} 47. Kd3 {[%clk 0:00:06.8]} 47... Nxh3 {[%clk 0:01:00.1]} 48.
Kc3 {[%clk 0:00:05.3]} 48... Nf4 {[%clk 0:00:59.5]} 49. Be8 {[%clk 0:00:04.4]}
49... Ne2+ {[%clk 0:00:57.1]} 50. Kd3 {[%clk 0:00:02.4]} 50... Nd4 {[%clk
0:00:58]} 51. Kc3 {[%clk 0:00:02.8]} 51... h3 {[%clk 0:00:58]} 0-1

[Event "*** Titled Tuesday Blitz"]
[Site "Chess.com"]
[Date "2021.02.02"]
[Round "5"]
[White "Skat2704"]
[Black "DenisQ"]
[Result "1-0"]
[WhiteElo "2515"]
[BlackElo "2655"]
[TimeControl "180+1"]
[EndTime "10:58:47 PST"]
[Termination "Skat2704 won on time"]

1. d4 {[%clk 0:03:00.9]} 1... Nf6 {[%clk 0:02:58.6]} 2. c4 {[%clk 0:02:58.4]}
2... g6 {[%clk 0:02:56.7]} 3. Nf3 {[%clk 0:02:56.9]} 3... Bg7 {[%clk 0:02:56.3]}
4. Nc3 {[%clk 0:02:55.7]} 4... d5 {[%clk 0:02:55.5]} 5. e3 {[%clk 0:02:54.4]}
5... O-O {[%clk 0:02:54.9]} 6. cxd5 {[%clk 0:02:53.4]} 6... Nxd5 {[%clk
0:02:54.4]} 7. Bc4 {[%clk 0:02:53.1]} 7... Nb6 {[%clk 0:02:49.8]} 8. Bb3 {[%clk
0:02:51.3]} 8... Na6 {[%clk 0:02:49.5]} 9. O-O {[%clk 0:02:47]} 9... c5 {[%clk
0:02:49.1]} 10. h3 {[%clk 0:02:43.8]} 10... Bd7 {[%clk 0:02:37.9]} 11. d5 {[%clk
0:02:35.3]} 11... c4 {[%clk 0:02:30.7]} 12. Bc2 {[%clk 0:02:33.6]} 12... e6
{[%clk 0:02:30.4]} 13. e4 {[%clk 0:02:28.7]} 13... Nb4 {[%clk 0:02:19.9]} 14.
Bg5 {[%clk 0:02:16.3]} 14... f6 {[%clk 0:02:10.7]} 15. Be3 {[%clk 0:02:14.6]}
15... exd5 {[%clk 0:02:07.4]} 16. exd5 {[%clk 0:02:11.3]} 16... Nxc2 {[%clk
0:02:06.2]} 17. Qxc2 {[%clk 0:02:10.1]} 17... Re8 {[%clk 0:02:01.7]} 18. Qd2
{[%clk 0:02:03.5]} 18... Rc8 {[%clk 0:01:55.1]} 19. Rad1 {[%clk 0:01:59.2]}
19... Na4 {[%clk 0:01:53]} 20. Bd4 {[%clk 0:01:50.7]} 20... Qa5 {[%clk
0:01:42.9]} 21. Rfe1 {[%clk 0:01:40.7]} 21... Qb4 {[%clk 0:01:37.2]} 22. Ne4
{[%clk 0:01:34.1]} 22... Qxd2 {[%clk 0:01:34.4]} 23. Nfxd2 {[%clk 0:01:26.7]}
23... f5 {[%clk 0:00:52.5]} 24. Bxg7 {[%clk 0:01:22.4]} 24... Kxg7 {[%clk
0:00:36.7]} 25. Nd6 {[%clk 0:01:20]} 25... Rxe1+ {[%clk 0:00:37.6]} 26. Rxe1
{[%clk 0:01:18.3]} 26... Rc7 {[%clk 0:00:38.1]} 27. Re7+ {[%clk 0:01:15.8]}
27... Kf6 {[%clk 0:00:34.3]} 28. Rxh7 {[%clk 0:01:12.4]} 28... Ke5 {[%clk
0:00:16.5]} 29. Ne8 {[%clk 0:01:08.6]} 29... Rc8 {[%clk 0:00:14.4]} 30. Rxd7
{[%clk 0:01:04.3]} 30... Rxe8 {[%clk 0:00:14.2]} 31. Nxc4+ {[%clk 0:01:03.8]}
31... Kd4 {[%clk 0:00:14.5]} 32. b3 {[%clk 0:01:01.9]} 32... Nc5 {[%clk
0:00:13.6]} 33. Rg7 {[%clk 0:00:58.2]} 33... b5 {[%clk 0:00:11.2]} 34. Ne3
{[%clk 0:00:54]} 34... f4 {[%clk 0:00:10.8]} 35. Nc2+ {[%clk 0:00:51.7]} 35...
Kc3 {[%clk 0:00:10.6]} 36. Rxa7 {[%clk 0:00:46.8]} 36... Rc8 {[%clk 0:00:04.9]}
37. Na3 {[%clk 0:00:41.2]} 37... Kb4 {[%clk 0:00:04.4]} 38. d6 {[%clk
0:00:39.6]} 38... Rd8 {[%clk 0:00:02.2]} 39. Nc2+ {[%clk 0:00:36]} 39... Kc3
{[%clk 0:00:01.6]} 40. Rc7 {[%clk 0:00:34.6]} 1-0

[Event "*** Titled Tuesday Blitz"]
[Site "Chess.com"]
[Date "2021.02.02"]
[Round "5"]
[White "FontVella8"]
[Black "superchess02"]
[Result "1-0"]
[WhiteElo "2592"]
[BlackElo "2790"]
[TimeControl "180+1"]
[EndTime "10:58:48 PST"]
[Termination "FontVella8 won by resignation"]

1. e4 {[%clk 0:02:14.5]} 1... Nf6 {[%clk 0:02:58.8]} 2. e5 {[%clk 0:02:13]} 2...
Nd5 {[%clk 0:02:58.6]} 3. d4 {[%clk 0:02:12.9]} 3... d6 {[%clk 0:02:58.3]} 4.
Nf3 {[%clk 0:02:13.6]} 4... Nc6 {[%clk 0:02:56]} 5. c4 {[%clk 0:02:12.5]} 5...
Nb6 {[%clk 0:02:56.2]} 6. exd6 {[%clk 0:02:12.8]} 6... cxd6 {[%clk 0:02:56.2]}
7. Be3 {[%clk 0:02:11]} 7... g6 {[%clk 0:02:55.5]} 8. Nc3 {[%clk 0:02:11.1]}
8... Bg7 {[%clk 0:02:55.4]} 9. Rc1 {[%clk 0:02:11.6]} 9... O-O {[%clk
0:02:55.2]} 10. b3 {[%clk 0:02:11.9]} 10... e5 {[%clk 0:02:54.7]} 11. Be2 {[%clk
0:02:06.9]} 11... Bg4 {[%clk 0:02:53.7]} 12. d5 {[%clk 0:02:04.8]} 12... Ne7
{[%clk 0:02:53.3]} 13. O-O {[%clk 0:02:03.8]} 13... Bxf3 {[%clk 0:02:51]} 14.
Bxf3 {[%clk 0:02:03.8]} 14... f5 {[%clk 0:02:51.7]} 15. g3 {[%clk 0:01:58.9]}
15... Nd7 {[%clk 0:02:40.2]} 16. Bg2 {[%clk 0:01:49.2]} 16... a6 {[%clk
0:02:31.8]} 17. b4 {[%clk 0:01:39.7]} 17... Rc8 {[%clk 0:02:06.1]} 18. c5 {[%clk
0:01:36.9]} 18... f4 {[%clk 0:02:06.4]} 19. cxd6 {[%clk 0:01:35.9]} 19... Nf5
{[%clk 0:02:05.8]} 20. Bd2 {[%clk 0:01:18.5]} 20... Nd4 {[%clk 0:02:02.6]} 21.
Ne4 {[%clk 0:01:00.7]} 21... Rxc1 {[%clk 0:01:54.1]} 22. Bxc1 {[%clk 0:00:59.5]}
22... Nf6 {[%clk 0:01:38.2]} 23. Nxf6+ {[%clk 0:00:54.3]} 23... Qxf6 {[%clk
0:01:39.1]} 24. Be4 {[%clk 0:00:53.2]} 24... Qxd6 {[%clk 0:01:36.1]} 25. a3
{[%clk 0:00:50.3]} 25... Qd7 {[%clk 0:01:09.9]} 26. Bb2 {[%clk 0:00:41.5]} 26...
Nb5 {[%clk 0:01:09.9]} 27. d6 {[%clk 0:00:27.5]} 27... Nd4 {[%clk 0:00:29]} 28.
Bxd4 {[%clk 0:00:25.9]} 28... exd4 {[%clk 0:00:29.9]} 29. Qb3+ {[%clk
0:00:26.5]} 29... Kh8 {[%clk 0:00:29.5]} 30. Qd5 {[%clk 0:00:26.7]} 30... b6
{[%clk 0:00:23.9]} 31. Rc1 {[%clk 0:00:26.4]} 31... Rd8 {[%clk 0:00:17.6]} 32.
Rc7 {[%clk 0:00:22.8]} 32... Qg4 {[%clk 0:00:17.1]} 33. Qf7 {[%clk 0:00:15.9]}
33... Rg8 {[%clk 0:00:16.9]} 34. Bd5 {[%clk 0:00:15]} 34... Qd1+ {[%clk
0:00:16.4]} 35. Kg2 {[%clk 0:00:15.2]} 35... f3+ {[%clk 0:00:17.3]} 36. Bxf3
{[%clk 0:00:12.3]} 36... Qe2 {[%clk 0:00:13.9]} 37. Bd5 {[%clk 0:00:11.8]} 1-0